[Event "Titled Tuesday Blitz January 10 Late 2023"]
[White "Sailer, Mike"]
[Black "Weisz, Bryan"]
[WhiteFideId "2012901"]
[BlackFideId "30934133"]
[WhiteElo "2109"]
[BlackElo "1973"]
[Result "1-0"]
[Round "04"]
[TimeControl "180+2"]
[Date "2023.01.10"]
[WhiteClock "0:00:32"]
[BlackClock "0:02:38"]

1. d4 {[%clk 0:00:00]}  Nf6 {[%clk 0:00:00]} 2. Bf4 {[%clk 0:03:00]}  Nd5 {[%clk 0:02:53]} 3. Bg3 {[%clk 0:02:56]}  Nb4 {[%clk 0:02:53]} 4. a3 {[%clk 0:02:51]}  N4a6 {[%clk 0:02:52]} 5. e4 {[%clk 0:02:45]}  c6 {[%clk 0:02:50]} 6. c4 {[%clk 0:02:41]}  Nc7 {[%clk 0:02:48]} 7. Nc3 {[%clk 0:02:30]}  Ne6 {[%clk 0:02:49]} 8. Nf3 {[%clk 0:02:29]}  g6 {[%clk 0:02:46]} 9. Be2 {[%clk 0:02:11]}  Ng7 {[%clk 0:02:46]} 10. h3 {[%clk 0:02:03]}  Na6 {[%clk 0:02:46]} 11. O-O {[%clk 0:01:51]}  Nc7 {[%clk 0:02:47]} 12. b4 {[%clk 0:01:47]}  d6 {[%clk 0:02:46]} 13. Re1 {[%clk 0:01:45]}  Rb8 {[%clk 0:02:46]} 14. c5 {[%clk 0:01:45]}  Na8 {[%clk 0:02:46]} 15. Bc4 {[%clk 0:01:34]}  e6 {[%clk 0:02:46]} 16. cxd6 {[%clk 0:01:23]}  Bxd6 {[%clk 0:02:46]} 17. Bxd6 {[%clk 0:01:08]}  Qxd6 {[%clk 0:02:46]} 18. e5 {[%clk 0:01:01]}  Qd8 {[%clk 0:02:46]} 19. Ne4 {[%clk 0:01:00]}  O-O {[%clk 0:02:42]} 20. Nf6+ {[%clk 0:01:00]}  Kh8 {[%clk 0:02:42]} 21. Qd2 {[%clk 0:00:59]}  Ne8 {[%clk 0:02:42]} 22. Qh6 {[%clk 0:00:55]}  Nxf6 {[%clk 0:02:39]} 23. exf6 {[%clk 0:00:32]}  Rg8 {[%clk 0:02:38]} 24. Ng5 {[%clk 0:00:32]} 1-0


[Site "https://www.chess.com"]

[Event "Titled Tuesday Blitz January 10 Late 2023"]
[White "Mazurkiewicz, Michal"]
[Black "Michalski, Olaf"]
[WhiteFideId "1124943"]
[BlackFideId "1106740"]
[WhiteElo "2145"]
[BlackElo "2273"]
[Result "0-1"]
[Round "04"]
[TimeControl "180+2"]
[Date "2023.01.10"]
[WhiteClock "0:00:10"]
[BlackClock "0:00:05"]

1. e4 {[%clk 0:00:00]}  c5 {[%clk 0:00:00]} 2. Nf3 {[%clk 0:03:00]}  a6 {[%clk 0:02:59]} 3. g3 {[%clk 0:03:00]}  b5 {[%clk 0:02:59]} 4. Bg2 {[%clk 0:02:59]}  Bb7 {[%clk 0:02:58]} 5. d3 {[%clk 0:02:59]}  g6 {[%clk 0:02:59]} 6. O-O {[%clk 0:03:00]}  Bg7 {[%clk 0:02:51]} 7. Re1 {[%clk 0:03:00]}  d6 {[%clk 0:02:51]} 8. c3 {[%clk 0:03:01]}  Nf6 {[%clk 0:02:47]} 9. Nbd2 {[%clk 0:02:59]}  e5 {[%clk 0:02:42]} 10. d4 {[%clk 0:02:42]}  Qc7 {[%clk 0:02:36]} 11. d5 {[%clk 0:02:34]}  Nbd7 {[%clk 0:02:36]} 12. c4 {[%clk 0:02:32]}  Bh6 {[%clk 0:02:31]} 13. Qe2 {[%clk 0:02:28]}  Qb6 {[%clk 0:02:17]} 14. a4 {[%clk 0:02:24]}  bxa4 {[%clk 0:01:33]} 15. Rxa4 {[%clk 0:02:11]}  O-O {[%clk 0:01:31]} 16. h3 {[%clk 0:02:11]}  Rfb8 {[%clk 0:01:27]} 17. g4 {[%clk 0:02:10]}  Bf4 {[%clk 0:01:04]} 18. Nh2 {[%clk 0:02:07]}  a5 {[%clk 0:01:04]} 19. h4 {[%clk 0:01:31]}  Ba6 {[%clk 0:01:00]} 20. Bh3 {[%clk 0:01:29]}  Bxd2 {[%clk 0:00:59]} 21. Bxd2 {[%clk 0:01:26]}  Qb3 {[%clk 0:00:52]} 22. Ra3 {[%clk 0:01:21]}  Qxb2 {[%clk 0:00:52]} 23. Rea1 {[%clk 0:01:07]}  Nxe4 {[%clk 0:00:33]} 24. Qxe4 {[%clk 0:01:06]}  Qxd2 {[%clk 0:00:26]} 25. Rxa5 {[%clk 0:00:20]}  Bb7 {[%clk 0:00:26]} 26. Rxa8 {[%clk 0:00:21]}  Rxa8 {[%clk 0:00:24]} 27. Rxa8+ {[%clk 0:00:20]}  Bxa8 {[%clk 0:00:24]} 28. g5 {[%clk 0:00:20]}  Nb6 {[%clk 0:00:25]} 29. Ng4 {[%clk 0:00:20]}  Qc1+ {[%clk 0:00:22]} 30. Kg2 {[%clk 0:00:19]}  Qxc4 {[%clk 0:00:19]} 31. Nf6+ {[%clk 0:00:16]}  Kh8 {[%clk 0:00:19]} 32. Qb1 {[%clk 0:00:14]}  Bxd5+ {[%clk 0:00:15]} 33. Kg1 {[%clk 0:00:13]}  Qb4 {[%clk 0:00:13]} 34. Qa1 {[%clk 0:00:13]}  Qxh4 {[%clk 0:00:12]} 35. Qc1 {[%clk 0:00:12]}  Qf4 {[%clk 0:00:05]} 36. Qxf4 {[%clk 0:00:06]}  exf4 {[%clk 0:00:05]} 37. Kf1 {[%clk 0:00:05]}  Be6 {[%clk 0:00:05]} 38. Bg2 {[%clk 0:00:05]}  d5 {[%clk 0:00:04]} 39. Ke1 {[%clk 0:00:04]}  Kg7 {[%clk 0:00:03]} 40. Ne8+ {[%clk 0:00:05]}  Kf8 {[%clk 0:00:03]} 41. Nc7 {[%clk 0:00:05]}  Ke7 {[%clk 0:00:03]} 42. Na6 {[%clk 0:00:05]}  c4 {[%clk 0:00:02]} 43. Nc5 {[%clk 0:00:06]}  Kd6 {[%clk 0:00:02]} 44. Nb7+ {[%clk 0:00:06]}  Kc6 {[%clk 0:00:02]} 45. Nd8+ {[%clk 0:00:06]}  Kd7 {[%clk 0:00:02]} 46. Nb7 {[%clk 0:00:07]}  Kc7 {[%clk 0:00:02]} 47. Nc5 {[%clk 0:00:07]}  Nd7 {[%clk 0:00:02]} 48. Na6+ {[%clk 0:00:07]}  Kb6 {[%clk 0:00:02]} 49. Nb4 {[%clk 0:00:07]}  Nc5 {[%clk 0:00:02]} 50. Nc2 {[%clk 0:00:08]}  Kb5 {[%clk 0:00:03]} 51. Nd4+ {[%clk 0:00:08]}  Kb4 {[%clk 0:00:02]} 52. Nc6+ {[%clk 0:00:08]}  Kc3 {[%clk 0:00:02]} 53. Ne5 {[%clk 0:00:09]}  d4 {[%clk 0:00:02]} 54. Ng4 {[%clk 0:00:09]}  d3 {[%clk 0:00:02]} 55. Bf3 {[%clk 0:00:09]}  Bxg4 {[%clk 0:00:02]} 56. Bxg4 {[%clk 0:00:09]}  d2+ {[%clk 0:00:01]} 57. Kd1 {[%clk 0:00:09]}  Nd3 {[%clk 0:00:02]} 58. Ke2 {[%clk 0:00:09]}  Nb2 {[%clk 0:00:03]} 59. Kf3 {[%clk 0:00:09]}  d1=Q+ {[%clk 0:00:03]} 60. Kxf4 {[%clk 0:00:09]}  Qd4+ {[%clk 0:00:03]} 61. Kg3 {[%clk 0:00:09]}  Qe5+ {[%clk 0:00:03]} 62. f4 {[%clk 0:00:10]}  Qe3+ {[%clk 0:00:03]} 63. Bf3 {[%clk 0:00:10]}  Nd3 {[%clk 0:00:03]} 64. Kh4 {[%clk 0:00:10]}  Qxf4+ {[%clk 0:00:03]} 65. Bg4 {[%clk 0:00:11]}  Qxg4+ {[%clk 0:00:04]} 66. Kxg4 {[%clk 0:00:10]}  Ne5+ {[%clk 0:00:03]} 67. Kf4 {[%clk 0:00:11]}  Kd4 {[%clk 0:00:03]} 68. Kg3 {[%clk 0:00:11]}  c3 {[%clk 0:00:03]} 69. Kh4 {[%clk 0:00:10]}  c2 {[%clk 0:00:03]} 70. Kg3 {[%clk 0:00:11]}  c1=Q {[%clk 0:00:03]} 71. Kh4 {[%clk 0:00:12]}  Qf4+ {[%clk 0:00:03]} 72. Kh3 {[%clk 0:00:12]}  Qxg5 {[%clk 0:00:03]} 73. Kh2 {[%clk 0:00:12]}  Nf3+ {[%clk 0:00:03]} 74. Kh3 {[%clk 0:00:12]}  Ne5 {[%clk 0:00:04]} 75. Kh2 {[%clk 0:00:12]}  Ke3 {[%clk 0:00:04]} 76. Kh1 {[%clk 0:00:12]}  Kf3 {[%clk 0:00:04]} 77. Kh2 {[%clk 0:00:10]}  Qg2# {[%clk 0:00:05]} 0-1


[Site "https://www.chess.com"]

[Event "Titled Tuesday Blitz January 10 Late 2023"]
[White "Aung Thant Zin"]
[Black "Guimaraes, Wagner Peixoto"]
[WhiteFideId "13000063"]
[BlackFideId "2100940"]
[WhiteElo "2268"]
[BlackElo "2194"]
[Result "1-0"]
[Round "04"]
[TimeControl "180+2"]
[Date "2023.01.10"]
[WhiteClock "0:00:11"]
[BlackClock "0:00:03"]

1. e4 {[%clk 0:00:00]}  c5 {[%clk 0:00:00]} 2. Nf3 {[%clk 0:02:57]}  d6 {[%clk 0:02:55]} 3. d4 {[%clk 0:02:57]}  cxd4 {[%clk 0:02:55]} 4. Nxd4 {[%clk 0:02:57]}  Nf6 {[%clk 0:02:56]} 5. Nc3 {[%clk 0:02:58]}  a6 {[%clk 0:02:56]} 6. g3 {[%clk 0:02:59]}  g6 {[%clk 0:02:57]} 7. Bg2 {[%clk 0:02:59]}  Bg7 {[%clk 0:02:56]} 8. O-O {[%clk 0:02:59]}  O-O {[%clk 0:02:57]} 9. h3 {[%clk 0:02:59]}  Nc6 {[%clk 0:02:57]} 10. Be3 {[%clk 0:02:59]}  Ne5 {[%clk 0:02:57]} 11. b3 {[%clk 0:02:58]}  Qc7 {[%clk 0:02:56]} 12. Nd5 {[%clk 0:02:52]}  Nxd5 {[%clk 0:02:55]} 13. exd5 {[%clk 0:02:43]}  Rb8 {[%clk 0:02:54]} 14. c4 {[%clk 0:02:44]}  Nd7 {[%clk 0:02:50]} 15. Rc1 {[%clk 0:02:41]}  Nf6 {[%clk 0:02:36]} 16. Re1 {[%clk 0:02:37]}  Bd7 {[%clk 0:02:20]} 17. Qd2 {[%clk 0:02:36]}  Rfe8 {[%clk 0:02:18]} 18. b4 {[%clk 0:02:34]}  b6 {[%clk 0:02:17]} 19. Nc6 {[%clk 0:02:16]}  Bxc6 {[%clk 0:02:09]} 20. dxc6 {[%clk 0:02:10]}  b5 {[%clk 0:02:08]} 21. cxb5 {[%clk 0:02:09]}  axb5 {[%clk 0:01:49]} 22. Red1 {[%clk 0:02:07]}  Red8 {[%clk 0:01:49]} 23. Qc2 {[%clk 0:01:52]}  d5 {[%clk 0:01:49]} 24. a4 {[%clk 0:01:43]}  e5 {[%clk 0:01:41]} 25. axb5 {[%clk 0:01:42]}  d4 {[%clk 0:01:26]} 26. Bg5 {[%clk 0:01:40]}  Rxb5 {[%clk 0:01:24]} 27. Qc4 {[%clk 0:01:20]}  Rdb8 {[%clk 0:01:23]} 28. Bd2 {[%clk 0:01:18]}  Bf8 {[%clk 0:01:18]} 29. Rb1 {[%clk 0:01:12]}  Be7 {[%clk 0:01:12]} 30. Rb3 {[%clk 0:01:08]}  Kg7 {[%clk 0:01:02]} 31. Ra1 {[%clk 0:01:01]}  R8b6 {[%clk 0:00:57]} 32. Ra5 {[%clk 0:00:59]}  Rxa5 {[%clk 0:00:44]} 33. bxa5 {[%clk 0:00:53]}  Rxb3 {[%clk 0:00:39]} 34. Qxb3 {[%clk 0:00:53]}  e4 {[%clk 0:00:37]} 35. Qb7 {[%clk 0:00:53]}  Qe5 {[%clk 0:00:36]} 36. c7 {[%clk 0:00:53]}  e3 {[%clk 0:00:32]} 37. fxe3 {[%clk 0:00:50]}  dxe3 {[%clk 0:00:32]} 38. Be1 {[%clk 0:00:47]}  Bc5 {[%clk 0:00:31]} 39. Kh2 {[%clk 0:00:47]}  Bd6 {[%clk 0:00:30]} 40. c8=Q {[%clk 0:00:46]}  h5 {[%clk 0:00:25]} 41. Qc3 {[%clk 0:00:44]}  Qe6 {[%clk 0:00:24]} 42. Qf3 {[%clk 0:00:37]}  h4 {[%clk 0:00:19]} 43. Kh1 {[%clk 0:00:33]}  Be5 {[%clk 0:00:16]} 44. Qcc6 {[%clk 0:00:30]}  Qb3 {[%clk 0:00:15]} 45. gxh4 {[%clk 0:00:29]}  Qb1 {[%clk 0:00:10]} 46. Qf1 {[%clk 0:00:28]}  Nh5 {[%clk 0:00:09]} 47. Qd5 {[%clk 0:00:18]}  Bf6 {[%clk 0:00:09]} 48. Qdd3 {[%clk 0:00:14]}  Qb8 {[%clk 0:00:07]} 49. Qxe3 {[%clk 0:00:11]}  Qd8 {[%clk 0:00:05]} 50. Qef3 {[%clk 0:00:11]}  Qe7 {[%clk 0:00:05]} 51. Qxf6+ {[%clk 0:00:10]}  Nxf6 {[%clk 0:00:03]} 52. Bc3 {[%clk 0:00:11]} 1-0


[Site "https://www.chess.com"]

[Event "Titled Tuesday Blitz January 10 Late 2023"]
[White "Hoffmann, Asa"]
[Black "Almedina Ortiz, Edgardo J."]
[WhiteFideId "2001470"]
[BlackFideId "3100197"]
[WhiteElo "2185"]
[BlackElo "2156"]
[Result "1-0"]
[Round "04"]
[TimeControl "180+2"]
[Date "2023.01.10"]
[WhiteClock "0:01:19"]
[BlackClock "0:00:12"]

1. d4 {[%clk 0:00:00]}  Nf6 {[%clk 0:00:00]} 2. Bg5 {[%clk 0:02:59]}  d5 {[%clk 0:02:36]} 3. Nd2 {[%clk 0:02:57]}  c5 {[%clk 0:02:32]} 4. e3 {[%clk 0:02:50]}  Nc6 {[%clk 0:02:25]} 5. c3 {[%clk 0:02:49]}  Qb6 {[%clk 0:02:21]} 6. b3 {[%clk 0:02:49]}  Bf5 {[%clk 0:02:08]} 7. f4 {[%clk 0:02:46]}  e6 {[%clk 0:02:01]} 8. Ngf3 {[%clk 0:02:46]}  cxd4 {[%clk 0:01:53]} 9. exd4 {[%clk 0:02:45]}  Rc8 {[%clk 0:01:52]} 10. Be2 {[%clk 0:02:44]}  Ba3 {[%clk 0:01:31]} 11. O-O {[%clk 0:02:36]}  Bb2 {[%clk 0:01:14]} 12. Ne5 {[%clk 0:02:29]}  Bxc3 {[%clk 0:01:12]} 13. Nxc6 {[%clk 0:02:27]}  Rxc6 {[%clk 0:01:06]} 14. Nf3 {[%clk 0:02:17]}  Bxa1 {[%clk 0:01:04]} 15. Qxa1 {[%clk 0:02:16]}  Ne4 {[%clk 0:01:03]} 16. Bh4 {[%clk 0:02:15]}  O-O {[%clk 0:01:02]} 17. Ne5 {[%clk 0:02:13]}  Rc7 {[%clk 0:01:01]} 18. g4 {[%clk 0:02:11]}  Bg6 {[%clk 0:00:52]} 19. f5 {[%clk 0:02:06]}  exf5 {[%clk 0:00:50]} 20. gxf5 {[%clk 0:02:06]}  f6 {[%clk 0:00:37]} 21. fxg6 {[%clk 0:02:05]}  fxe5 {[%clk 0:00:33]} 22. gxh7+ {[%clk 0:01:57]}  Kxh7 {[%clk 0:00:32]} 23. Rxf8 {[%clk 0:01:57]}  Qxd4+ {[%clk 0:00:32]} 24. Qxd4 {[%clk 0:01:55]}  exd4 {[%clk 0:00:30]} 25. Bd3 {[%clk 0:01:54]}  Rc3 {[%clk 0:00:31]} 26. Rf3 {[%clk 0:01:50]}  Kh6 {[%clk 0:00:30]} 27. Bxe4 {[%clk 0:01:46]}  dxe4 {[%clk 0:00:26]} 28. Rxc3 {[%clk 0:01:42]}  dxc3 {[%clk 0:00:25]} 29. Be1 {[%clk 0:01:41]}  c2 {[%clk 0:00:26]} 30. Bd2+ {[%clk 0:01:40]}  Kg6 {[%clk 0:00:24]} 31. Kf2 {[%clk 0:01:39]}  Kf5 {[%clk 0:00:22]} 32. Ke3 {[%clk 0:01:39]}  Ke5 {[%clk 0:00:23]} 33. h4 {[%clk 0:01:39]}  g6 {[%clk 0:00:22]} 34. Bc1 {[%clk 0:01:35]}  Kf5 {[%clk 0:00:20]} 35. a4 {[%clk 0:01:29]}  a6 {[%clk 0:00:19]} 36. b4 {[%clk 0:01:28]}  b5 {[%clk 0:00:19]} 37. axb5 {[%clk 0:01:27]}  axb5 {[%clk 0:00:18]} 38. Kd4 {[%clk 0:01:26]}  Kg4 {[%clk 0:00:18]} 39. Kxe4 {[%clk 0:01:21]}  Kxh4 {[%clk 0:00:16]} 40. Kd3 {[%clk 0:01:21]}  g5 {[%clk 0:00:16]} 41. Kxc2 {[%clk 0:01:21]}  g4 {[%clk 0:00:16]} 42. Kd3 {[%clk 0:01:21]}  g3 {[%clk 0:00:14]} 43. Kd4 {[%clk 0:01:21]}  g2 {[%clk 0:00:13]} 44. Be3 {[%clk 0:01:20]}  Kg3 {[%clk 0:00:11]} 45. Kc5 {[%clk 0:01:20]}  Kf3 {[%clk 0:00:12]} 46. Bd4 {[%clk 0:01:19]}  Ke4 {[%clk 0:00:12]} 47. Bg1 {[%clk 0:01:19]} 1-0


[Site "https://www.chess.com"]

[Event "Titled Tuesday Blitz January 10 Late 2023"]
[White "Zanette, Edgard Vinicius"]
[Black "MunichMouse"]
[WhiteFideId "2109263"]
[WhiteElo "2085"]
[BlackElo "1993"]
[Result "1-0"]
[Round "04"]
[TimeControl "180+2"]
[Date "2023.01.10"]
[WhiteClock "0:00:14"]
[BlackClock "0:00:01"]

1. e4 {[%clk 0:00:00]}  c5 {[%clk 0:00:00]} 2. Nc3 {[%clk 0:02:56]}  a6 {[%clk 0:02:57]} 3. f4 {[%clk 0:02:56]}  Nc6 {[%clk 0:02:57]} 4. Nf3 {[%clk 0:02:55]}  g6 {[%clk 0:02:54]} 5. d4 {[%clk 0:02:55]}  cxd4 {[%clk 0:02:55]} 6. Nxd4 {[%clk 0:02:53]}  Bg7 {[%clk 0:02:53]} 7. Nxc6 {[%clk 0:02:53]}  bxc6 {[%clk 0:02:54]} 8. Be3 {[%clk 0:02:52]}  Nh6 {[%clk 0:02:53]} 9. Bd4 {[%clk 0:02:47]}  O-O {[%clk 0:02:24]} 10. Bxg7 {[%clk 0:02:39]}  Kxg7 {[%clk 0:02:16]} 11. Qd4+ {[%clk 0:02:37]}  f6 {[%clk 0:02:16]} 12. O-O-O {[%clk 0:02:37]}  Rb8 {[%clk 0:02:16]} 13. Bc4 {[%clk 0:02:35]}  Qb6 {[%clk 0:02:16]} 14. Qxb6 {[%clk 0:02:32]}  Rxb6 {[%clk 0:02:15]} 15. Na4 {[%clk 0:02:23]}  Rb4 {[%clk 0:02:15]} 16. b3 {[%clk 0:02:17]}  d6 {[%clk 0:02:11]} 17. a3 {[%clk 0:02:16]}  Rb8 {[%clk 0:02:11]} 18. h3 {[%clk 0:02:13]}  Nf7 {[%clk 0:02:09]} 19. g4 {[%clk 0:02:12]}  a5 {[%clk 0:02:05]} 20. Rhe1 {[%clk 0:01:55]}  Nd8 {[%clk 0:02:03]} 21. f5 {[%clk 0:01:47]}  Nf7 {[%clk 0:02:03]} 22. Bxf7 {[%clk 0:01:42]}  Kxf7 {[%clk 0:02:01]} 23. Re3 {[%clk 0:01:38]}  Ba6 {[%clk 0:01:58]} 24. c4 {[%clk 0:01:29]}  c5 {[%clk 0:01:55]} 25. Kc2 {[%clk 0:01:28]}  g5 {[%clk 0:01:44]} 26. Nc3 {[%clk 0:01:23]}  h5 {[%clk 0:01:43]} 27. gxh5 {[%clk 0:01:22]}  Rh8 {[%clk 0:01:42]} 28. Nd5 {[%clk 0:01:10]}  Rxh5 {[%clk 0:01:41]} 29. Rg1 {[%clk 0:01:04]}  Rbh8 {[%clk 0:01:36]} 30. Rgg3 {[%clk 0:01:00]}  Rh4 {[%clk 0:01:35]} 31. Kc3 {[%clk 0:01:00]}  Bb7 {[%clk 0:01:31]} 32. b4 {[%clk 0:00:52]}  Bxd5 {[%clk 0:01:30]} 33. exd5 {[%clk 0:00:44]}  cxb4+ {[%clk 0:01:02]} 34. axb4 {[%clk 0:00:41]}  Rc8 {[%clk 0:01:02]} 35. Rg4 {[%clk 0:00:40]}  axb4+ {[%clk 0:00:53]} 36. Kb3 {[%clk 0:00:36]}  Rhh8 {[%clk 0:00:51]} 37. Rge4 {[%clk 0:00:30]}  Rc7 {[%clk 0:00:47]} 38. Kxb4 {[%clk 0:00:27]}  Rb8+ {[%clk 0:00:46]} 39. Kc3 {[%clk 0:00:27]}  Ra7 {[%clk 0:00:46]} 40. Kd4 {[%clk 0:00:27]}  Rb1 {[%clk 0:00:46]} 41. h4 {[%clk 0:00:27]}  Rd1+ {[%clk 0:00:43]} 42. Rd3 {[%clk 0:00:25]}  Rxd3+ {[%clk 0:00:29]} 43. Kxd3 {[%clk 0:00:25]}  Ra3+ {[%clk 0:00:17]} 44. Kd4 {[%clk 0:00:25]}  Rg3 {[%clk 0:00:09]} 45. c5 {[%clk 0:00:24]}  dxc5+ {[%clk 0:00:10]} 46. Kxc5 {[%clk 0:00:20]}  g4 {[%clk 0:00:08]} 47. h5 {[%clk 0:00:20]}  Rg1 {[%clk 0:00:07]} 48. h6 {[%clk 0:00:20]}  Rc1+ {[%clk 0:00:05]} 49. Kb6 {[%clk 0:00:18]}  g3 {[%clk 0:00:02]} 50. Rg4 {[%clk 0:00:18]}  Rh1 {[%clk 0:00:02]} 51. Rg7+ {[%clk 0:00:17]}  Kf8 {[%clk 0:00:02]} 52. Rxg3 {[%clk 0:00:17]}  Rxh6 {[%clk 0:00:01]} 53. Kc7 {[%clk 0:00:14]}  Rh5 {[%clk 0:00:01]} 54. Rf3 {[%clk 0:00:14]}  Ke8 {[%clk 0:00:01]} 55. d6 {[%clk 0:00:14]} 1-0


[Site "https://www.chess.com"]

[Event "Titled Tuesday Blitz January 10 Late 2023"]
[White "Papp, Petra"]
[Black "Lutz, Igor Oscar"]
[WhiteFideId "739049"]
[BlackFideId "2110806"]
[WhiteElo "2343"]
[BlackElo "1969"]
[Result "1-0"]
[Round "04"]
[TimeControl "180+2"]
[Date "2023.01.10"]
[WhiteClock "0:00:01"]
[BlackClock "0:00:05"]

1. e4 {[%clk 0:00:00]}  c5 {[%clk 0:00:00]} 2. Nf3 {[%clk 0:02:57]}  Nc6 {[%clk 0:02:58]} 3. d4 {[%clk 0:02:55]}  cxd4 {[%clk 0:02:58]} 4. Nxd4 {[%clk 0:02:55]}  d6 {[%clk 0:02:58]} 5. Nc3 {[%clk 0:02:56]}  Nf6 {[%clk 0:02:58]} 6. Be3 {[%clk 0:02:55]}  Ng4 {[%clk 0:02:57]} 7. Bc1 {[%clk 0:02:55]}  Qb6 {[%clk 0:02:58]} 8. Nce2 {[%clk 0:02:49]}  e5 {[%clk 0:02:51]} 9. h3 {[%clk 0:02:32]}  Nxf2 {[%clk 0:02:30]} 10. Kxf2 {[%clk 0:02:22]}  Nxd4 {[%clk 0:02:23]} 11. Be3 {[%clk 0:02:21]}  Qc6 {[%clk 0:02:18]} 12. Nc3 {[%clk 0:02:15]}  a6 {[%clk 0:01:35]} 13. Bxd4 {[%clk 0:01:57]}  exd4 {[%clk 0:01:29]} 14. Qxd4 {[%clk 0:01:54]}  Be6 {[%clk 0:01:29]} 15. Bd3 {[%clk 0:01:55]}  Qc5 {[%clk 0:01:22]} 16. Ne2 {[%clk 0:01:44]}  Be7 {[%clk 0:01:11]} 17. c3 {[%clk 0:01:31]}  Bf6 {[%clk 0:01:00]} 18. Qxc5 {[%clk 0:01:14]}  dxc5 {[%clk 0:00:49]} 19. Nf4 {[%clk 0:01:13]}  Ke7 {[%clk 0:00:50]} 20. g4 {[%clk 0:01:10]}  Be5 {[%clk 0:00:24]} 21. Nxe6 {[%clk 0:01:02]}  Kxe6 {[%clk 0:00:20]} 22. Ke3 {[%clk 0:00:57]}  Rad8 {[%clk 0:00:21]} 23. Rad1 {[%clk 0:00:54]}  b5 {[%clk 0:00:20]} 24. Rd2 {[%clk 0:00:53]}  c4 {[%clk 0:00:20]} 25. Bc2 {[%clk 0:00:47]}  Rxd2 {[%clk 0:00:17]} 26. Kxd2 {[%clk 0:00:44]}  Rd8+ {[%clk 0:00:17]} 27. Ke3 {[%clk 0:00:45]}  f6 {[%clk 0:00:18]} 28. Rd1 {[%clk 0:00:44]}  Rxd1 {[%clk 0:00:19]} 29. Bxd1 {[%clk 0:00:43]}  g5 {[%clk 0:00:17]} 30. a4 {[%clk 0:00:44]}  h6 {[%clk 0:00:16]} 31. axb5 {[%clk 0:00:41]}  axb5 {[%clk 0:00:13]} 32. Kf3 {[%clk 0:00:40]}  Kd6 {[%clk 0:00:13]} 33. Ke3 {[%clk 0:00:40]}  Kc5 {[%clk 0:00:13]} 34. Kf3 {[%clk 0:00:37]}  b4 {[%clk 0:00:13]} 35. cxb4+ {[%clk 0:00:34]}  Kxb4 {[%clk 0:00:13]} 36. Ke3 {[%clk 0:00:13]}  Bxb2 {[%clk 0:00:14]} 37. Kd2 {[%clk 0:00:13]}  Be5 {[%clk 0:00:14]} 38. Kc2 {[%clk 0:00:12]}  Kc5 {[%clk 0:00:13]} 39. Bf3 {[%clk 0:00:12]}  Kd4 {[%clk 0:00:10]} 40. Kd2 {[%clk 0:00:12]}  c3+ {[%clk 0:00:11]} 41. Ke2 {[%clk 0:00:12]}  Bf4 {[%clk 0:00:11]} 42. Kd1 {[%clk 0:00:07]}  Ke3 {[%clk 0:00:09]} 43. Bg2 {[%clk 0:00:06]}  Be5 {[%clk 0:00:07]} 44. Kc2 {[%clk 0:00:04]}  Kf2 {[%clk 0:00:07]} 45. Bh1 {[%clk 0:00:04]}  Kg1 {[%clk 0:00:06]} 46. Bf3 {[%clk 0:00:04]}  Kh2 {[%clk 0:00:05]} 47. Be2 {[%clk 0:00:04]}  Kxh3 {[%clk 0:00:05]} 48. Kd3 {[%clk 0:00:03]}  Kg3 {[%clk 0:00:05]} 49. Kc2 {[%clk 0:00:03]}  Kf4 {[%clk 0:00:05]} 50. Kd3 {[%clk 0:00:04]}  Kg3 {[%clk 0:00:05]} 51. Kc2 {[%clk 0:00:04]}  Kf2 {[%clk 0:00:04]} 52. Bd1 {[%clk 0:00:03]}  Ke3 {[%clk 0:00:04]} 53. Kb3 {[%clk 0:00:02]}  Kxe4 {[%clk 0:00:05]} 54. Kc2 {[%clk 0:00:01]} 1-0


[Site "https://www.chess.com"]

[Event "Titled Tuesday Blitz January 10 Late 2023"]
[White "Sevian, Samuel"]
[Black "Hansen, Eric"]
[WhiteFideId "2040506"]
[BlackFideId "2606771"]
[WhiteElo "2684"]
[BlackElo "2609"]
[Result "1/2-1/2"]
[Round "05"]
[TimeControl "180+2"]
[Date "2023.01.10"]
[WhiteClock "0:00:31"]
[BlackClock "0:02:00"]

1. d4 {[%clk 0:00:00]}  Nf6 {[%clk 0:00:00]} 2. c4 {[%clk 0:02:28]}  e6 {[%clk 0:02:58]} 3. Nf3 {[%clk 0:02:27]}  d5 {[%clk 0:02:58]} 4. g3 {[%clk 0:02:11]}  Bb4+ {[%clk 0:02:56]} 5. Bd2 {[%clk 0:02:11]}  Be7 {[%clk 0:02:56]} 6. Bg2 {[%clk 0:02:11]}  O-O {[%clk 0:02:57]} 7. Qc2 {[%clk 0:02:12]}  c6 {[%clk 0:02:57]} 8. Bc3 {[%clk 0:02:12]}  dxc4 {[%clk 0:02:58]} 9. a4 {[%clk 0:02:13]}  Nd5 {[%clk 0:02:56]} 10. a5 {[%clk 0:02:13]}  Nd7 {[%clk 0:02:51]} 11. Nbd2 {[%clk 0:02:09]}  b5 {[%clk 0:02:50]} 12. axb6 {[%clk 0:02:07]}  N7xb6 {[%clk 0:02:36]} 13. Ba5 {[%clk 0:02:08]}  Ba6 {[%clk 0:02:37]} 14. O-O {[%clk 0:02:07]}  Qc8 {[%clk 0:02:35]} 15. Ne5 {[%clk 0:02:05]}  c5 {[%clk 0:02:30]} 16. dxc5 {[%clk 0:01:52]}  Bxc5 {[%clk 0:02:20]} 17. Ne4 {[%clk 0:01:38]}  Be7 {[%clk 0:02:18]} 18. h4 {[%clk 0:01:38]}  h6 {[%clk 0:02:11]} 19. Rfd1 {[%clk 0:01:38]}  Bb7 {[%clk 0:02:11]} 20. Rac1 {[%clk 0:01:37]}  Nb4 {[%clk 0:02:07]} 21. Bxb4 {[%clk 0:01:34]}  Bxb4 {[%clk 0:02:00]} 22. Nxc4 {[%clk 0:00:49]}  Qxc4 {[%clk 0:02:00]} 23. Qxc4 {[%clk 0:00:49]}  Nxc4 {[%clk 0:01:59]} 24. Rxc4 {[%clk 0:00:49]}  a5 {[%clk 0:02:00]} 25. Nf6+ {[%clk 0:00:50]}  gxf6 {[%clk 0:02:00]} 26. Bxb7 {[%clk 0:00:34]}  Rad8 {[%clk 0:02:00]} 27. Rxd8 {[%clk 0:00:35]}  Rxd8 {[%clk 0:02:00]} 28. Rc8 {[%clk 0:00:30]}  Rxc8 {[%clk 0:02:00]} 29. Bxc8 {[%clk 0:00:31]} 1/2-1/2


[Site "https://www.chess.com"]